Workbook

Sheet Introduction
D3: iWARM (Individual Waste Reduction Model) is an EPA tool designed to help you understand the energy saved by recycling small quantities of common waste materials. iWARM uses the same energy factors as EPA's Waste Reduction Model (WARM)* to provide the relative energy savings from recycling a particular material unit compared to landfilling it.
D9: In WARM, the energy consequences of waste management decisions are quantified for large-scale waste diversions (e.g., tons of aluminum cans). In iWARM, the tool quantifies the energy savings for household-scale amounts of common waste materials (e.g., a single aluminum can).
D14: iWARM translates the total energy savings from recycling the materials you choose into an equivalent amount of electricity. The tool then tells you how long you could run a variety a household appliances (e.g., clothes washer, hairdryer) using that amount of electricity, and shows the results in a graph.
D19: *WARM is available online at: http://www.epa.gov/warm

Sheet iWARM
B1: Version 2
C2: Individual Waste Reduction Model (iWARM)
C3: 1. Inputs | K3: 2. Results
D4: Enter the number of items of each product type you will be recycling in the column on the right
D5: Product Type | F5: Number of Items | L5: Net Energy Savings | Q5: Delivered Electricity Equivalent
D7: Aluminum drink can (12 fl. oz.) | L7: (Thousand Btu) | Q7: (kWh)
D8: Steel soup can (15.5 fl. oz.) | L8: =SUM(Calculations!$G$5:$G$24) -> 0 | Q8: =(L8/Conversions!$C$23) -> 0
D9: Metal coat hanger
D10: Glass bottle (12 fl. oz.)
D11: Glass wine bottle (0.75 liter)
D12: Gallon plastic milk jug
D13: Gallon plastic detergent container | K13: 3. The energy saved by recycling these products is equal to the electricity required to run
D14: Plastic grocery bag | L14: ONE of the following appliances for the indicated number of hours:
D15: Plastic bottle (20 fl. oz.)
D16: Plastic bottle (2 liter) | L16: Click on individual checkboxes to graph the hours equivalent for a particular appliance
D17: 2' x 2' x 2.5' corrugated cardboard box, 3mm thick | L17: Select All
D18: Weekly magazine | L18: Appliance | N18: Hours Available | Q18: Appliance | R18: Hours Available
D19: Catalog | L19: Room Air Conditioner | N19: =$Q$8/'Appliance List'!$E$52 -> 0 | Q19: Dishwasher (w/dry cycle) | R19: =$Q$8/('Appliance List'!$C$15/1000) -> 0
D20: Daily newspaper | L20: Ceiling Fan | N20: =$Q$8/'Appliance List'!$E$19 -> 0 | Q20: Dishwasher (w/o dry cycle) | R20: =$Q$8/('Appliance List'!$B$15/1000) -> 0
D21: Sunday edition of newspaper | L21: Window Fan | N21: =$Q$8/'Appliance List'!$E$20 -> 0 | Q21: Light bulb, CFL (60 W equivalent) | R21: =$Q$8/'Appliance List'!$E$47 -> 0
D22: 12-inch stack of newspaper | L22: Hairdryer | N22: =$Q$8/'Appliance List'!$E$23 -> 0 | Q22: Light bulb, Incandescent (60 W) | R22: =$Q$8/'Appliance List'!$E$46 -> 0
D23: Printer paper, 1 ream (500 sheets) | L23: Clothes Dryer | N23: =$Q$8/'Appliance List'!$E$13 -> 0 | Q23: Laptop Computer | R23: =$Q$8/'Appliance List'!$E$29 -> 0
D24: Sheet of printer paper | L24: Clothes Washer | N24: =$Q$8/'Appliance List'!$E$12 -> 0 | Q24: CRT Television, 36" | R24: =$Q$8/'Appliance List'!$E$35 -> 0
D25: White business envelope
D26: Paperboard cereal box
D29: Important Assumptions
C30: - | D30: Net energy savings are the result of recycling a product instead of landfilling it. EPA recognizes that not all products that are disposed are sent to a landfill. According to EPA's MSW Facts and Figures report, approximately 54% of all waste disposed is landfilled, 34% is recycled and the remaining 12% is combusted. The benefits of recycling as compared to combustion would be different than those presented here. However, since the majority of waste disposed is landfilled, this assumption is representative of the main disposal pathway in the United States.
C36: - | D36: The recycled product is assumed to be manufactured using 100% recycled inputs, and to displace the manufacture of a product made with 100% virgin inputs. EPA recognizes that products that are recycled generally displace new materials that have a mixture of recycled and virgin inputs (i.e., current average industry mix). The benefits presented here may be overstated for some materials (e.g., aluminum cans) for which the current average industry mix includes a high percentage of recycled inputs.
C42: - | D42: All the upstream energy saved via recycling is described in terms of delivered electricity energy downstream. In other words, the energy content of all fuels saved in the production process is expressed in terms of delivered electricity energy equivalent. The delivered electricity equivalent incorporates transmission and distribution losses.
C47: - | D47: The hours equivalencies for appliances are not additive and indicate the hours available to operate ONE appliance on the list at a time. The graph shows the comparison of hours available based on typical wattage of an appliance during operation.
D57: Do not change any of these cells
E58: hours | F58: checked
D59: Count | F59: =COUNTIF(F61:F72,TRUE) -> 0
D61: =L19 -> Room Air Conditioner | E61: =IF(F61,N19,0) -> 0 | F61: FALSE
D62: =L20 -> Ceiling Fan | E62: =IF(F62,N20,0) -> 0 | F62: FALSE
D63: =L21 -> Window Fan | E63: =IF(F63,N21,0) -> 0 | F63: FALSE
D64: =L23 -> Clothes Dryer | E64: =IF(F64,N23,0) -> 0 | F64: FALSE
D65: =L24 -> Clothes Washer | E65: =IF(F65,N24,0) -> 0 | F65: FALSE
D66: =Q19 -> Dishwasher (w/dry cycle) | E66: =IF(F66,R19,0) -> 0 | F66: FALSE
D67: =Q20 -> Dishwasher (w/o dry cycle) | E67: =IF(F67,R20,0) -> 0 | F67: FALSE
D68: =L22 -> Hairdryer | E68: =IF(F68,N22,0) -> 0 | F68: FALSE
D69: =Q21 -> Light bulb, CFL (60 W equivalent) | E69: =IF(F69,R21,0) -> 0 | F69: FALSE
D70: =Q22 -> Light bulb, Incandescent (60 W) | E70: =IF(F70,R22,0) -> 0 | F70: FALSE
D71: =Q23 -> Laptop Computer | E71: =IF(F71,R23,0) -> 0 | F71: FALSE
D72: =Q24 -> CRT Television, 36" | E72: =IF(F72,R24,0) -> 0 | F72: FALSE

Sheet Material Mass Assumptions
A1: Material Mass Assumptions
A2: The following are assumptions made in this model regarding the mass of each product.
A4: Example Products | B4: Material Type | C4: shorthand description | D4: Weight (lbs) | E4: Unit Explanation/Notes
A5: Aluminum drink can (12 fl. oz.) | B5: Aluminum Cans | C5: cans | D5: 0.0286601 | E5: per can
A6: Soup steel can (15.5 fl. oz.) | B6: Steel Cans | C6: cans | D6: 0.13 | E6: per tin ferrous can
A7: Metal coat hanger | B7: Steel Cans | C7: hangers | D7: 0.14 | E7: per hanger (adult)
A8: Glass bottle (12 fl. oz.) | B8: Glass | C8: bottles | D8: 0.53 | E8: per bottle
A9: Glass wine bottle (0.75 liter) | B9: Glass | C9: wine bottles | D9: =1.08 -> 1.08 | E9: per bottle
A10: Gallon plastic milk jug | B10: HDPE | C10: jugs | D10: 0.205 | E10: per empty jug
A11: Gallon plastic detergent container | B11: HDPE | C11: containers | D11: 0.33 | E11: per empty container
A12: Plastic grocery bag | B12: HDPE | C12: bags | D12: =0.77/100 -> 0.0077 | E12: per bag
A13: Plastic bottle (20 fl. oz.) | B13: PET | C13: bottles | D13: 0.0514 | E13: per bottle
A14: Plastic bottle (2 liter) | B14: PET | C14: bottles | D14: 0.13 | E14: per bottle
A15: 2' x 2' x 2.5' cardbox, 3mm | B15: Corrugated Cardboard | C15: boxes | D15: 2.2 | E15: per box
A16: Annual magazine | B16: Magazines/Third-class Mail | C16: magazines | D16: =3/10 -> 0.3 | E16: per 8.5" x 11" magazine (10 magazines per year)
A17: Catalog | B17: Magazines/Third-class Mail | C17: catalogs | D17: 1 | E17: per catalog of 100 pages ledger
A18: Daily newspaper | B18: Newspaper | C18: newspapers | D18: 0.4444 | E18: per weekday edition of newspaper
A19: Sunday New York Times | B19: Newspaper | C19: newspapers | D19: 4.2 | E19: per Sunday edition of newspaper
A20: 12-inch stack of newspaper | B20: Newspaper | C20: stacks | D20: 35 | E20: per 12" stack
A21: Printer paper, 1 ream (500 sheets) | B21: Office Paper | C21: reams | D21: 5 | E21: per 500 sheets of letter 8 1/2" x 11",
A22: Sheet of printer paper | B22: Office Paper | C22: sheets | D22: =D21/500 -> 0.01 | E22: per 1 sheet of letter 8 1/2" x 11",
A23: White business envelope | B23: Office Paper | C23: envelopes | D23: 0.011 | E23: per No. 10 envelope (4 1/8" x 9 1/2") 24 bond paper
A24: Paperboard Cereal box | B24: Broad Definition | C24: cereal boxes | D24: 0.15 | E24: per average Chipboard, cereal box

Sheet Appliance Assumptions
A1: Appliance Assumptions
A4: Appliance | B4: Wattage | C4: Unit Explanation/Notes | D4: Source | E4: Web link
A5: Room Air Conditioner | B5: ='Appliance List'!D52 -> 1500 | C5: Energy efficiency ratio (EER) equals 8 | D5: Energy Efficiency and Renewable Energy (EERE), US DOE, 2008 | E5: http://apps1.eere.energy.gov/consumer/your_home/space_heating_cooling/index.cfm/mytopic=12420
A6: Ceiling Fan | B6: 120 | C6: Average of range of typical wattage | D6: Energy Efficiency and Renewable Energy (EERE), US DOE, 2008 | E6: http://www.energy.ca.gov/appliances/database/historical_excel_files/Fans/
A7: Window Fan | B7: ='Appliance List'!D20 -> 152.5 | C7: Average of range of typical wattage | D7: Energy Efficiency and Renewable Energy (EERE), US DOE, 2008 | E7: http://www.energysavers.gov/your_home/appliances/index.cfm/mytopic=10040
A8: Hairdryer | B8: ='Appliance List'!D23 -> 1537.5 | C8: Average of range of typical wattage | D8: Energy Efficiency and Renewable Energy (EERE), US DOE, 2008 | E8: http://www.energysavers.gov/your_home/appliances/index.cfm/mytopic=10040
A9: Clothes Dryer | B9: ='Appliance List'!D13 -> 3400 | C9: Average of range of typical wattage | D9: Energy Efficiency and Renewable Energy (EERE), US DOE, 2008 | E9: http://www.energysavers.gov/your_home/appliances/index.cfm/mytopic=10040
A10: Clothes Washer | B10: ='Appliance List'!D12 -> 425 | C10: Average of range of typical wattage | D10: Energy Efficiency and Renewable Energy (EERE), US DOE, 2008 | E10: http://www.energysavers.gov/your_home/appliances/index.cfm/mytopic=10040
A11: Dishwasher (w/dry cycle) | B11: ='Appliance List'!C15 -> 2400 | C11: Maximum of range of typical wattage | D11: Energy Efficiency and Renewable Energy (EERE), US DOE, 2008 | E11: http://www.energysavers.gov/your_home/appliances/index.cfm/mytopic=10040
A12: Dishwasher (w/o dry cycle) | B12: ='Appliance List'!B15 -> 1200 | C12: Minimum of range of typical wattage | D12: Energy Efficiency and Renewable Energy (EERE), US DOE, 2008 | E12: http://www.energysavers.gov/your_home/appliances/index.cfm/mytopic=10040
A13: Light bulb, CFL (60 W equivalent) | B13: ='Appliance List'!D47 -> 13 | C13: Wattage equivalent for same light output as 60 W incandescent | D13: Energy Star, US EPA and US DOE, 2009 | E13: http://www.energystar.gov/index.cfm?c=cfls.pr_cfls_lumens
A14: Light bulb, Incandescent (60 W) | B14: ='Appliance List'!D46 -> 60 | C14: Wattage for 60 W incandescent | D14: Energy Star, US EPA and US DOE, 2009 | E14: http://www.energystar.gov/index.cfm?c=cfls.pr_cfls_lumens
A15: Laptop Computer | B15: ='Appliance List'!D29 -> 50 | C15: Typical wattage as listed | D15: Energy Efficiency and Renewable Energy (EERE), US DOE, 2008 | E15: http://www.energysavers.gov/your_home/appliances/index.cfm/mytopic=10040
A16: CRT Television, 36" | B16: ='Appliance List'!D35 -> 133 | C16: Typical wattage as listed | D16: Energy Efficiency and Renewable Energy (EERE), US DOE, 2008 | E16: http://www.energysavers.gov/your_home/appliances/index.cfm/mytopic=10040

Sheet Appliance List
A1: Source: Energy Efficiency and Renewable Energy (EERE), US DOE, 2008
A2: http://apps1.eere.energy.gov/consumer/your_home/appliances/index.cfm/mytopic=10040
A5: Typical Wattages of Various Appliances
B8: minimum | C8: maximum | D8: average | E8: kW
A9: Aquarium | B9: 50 | C9: 1210 | D9: =AVERAGE(B9:C9) -> 630 | E9: =D9/Conversions!$C$7 -> 0.63 | H9: https://data.energystar.gov/
A10: Clock radio | B10: 10 | C10: 10 | D10: =AVERAGE(B10:C10) -> 10 | E10: =D10/Conversions!$C$7 -> 0.01 | J10: http://www.appliances.energy.ca.gov/QuickSearch1024.aspx
A11: Coffee maker | B11: 900 | C11: 1200 | D11: 1050 | E11: =D11/Conversions!$C$7 -> 1.05
A12: Clothes washer | B12: 350 | C12: 500 | D12: 425 | E12: =D12/Conversions!$C$7 -> 0.425 | H12: kwH/year | I12: Clothes washer | J12: washer type
A13: Clothes dryer | B13: 1800 | C13: 5000 | D13: 3400 | E13: =D13/Conversions!$C$7 -> 3.4 | H13: kwH/year | I13: Clothes dryer | J13: drum capacity
A14: Clothes iron | B14: 1000 | C14: 1800 | D14: =AVERAGE(B14:C14) -> 1400 | E14: =D14/Conversions!$C$7 -> 1.4
A15: Dishwasher | B15: 1200 | C15: 2400 | D15: 1800 | E15: =D15/Conversions!$C$7 -> 1.8 | H15: kWh/year | I15: Dishwasher | J15: kWh and water
A16: Dehumidifier | B16: 785 | C16: 785 | D16: 785 | E16: =D16/Conversions!$C$7 -> 0.785
A17: Electric blanket (Single/Double) | B17: 60 | C17: 100 | D17: 80 | E17: =D17/Conversions!$C$7 -> 0.08
A18: Fans | I18: Fans
A19: Ceiling | B19: 65 | C19: 175 | D19: 120 | E19: =D19/Conversions!$C$7 -> 0.12 | H19: W | I19: Ceiling | J19: CFM/watt
A20: Window | B20: 55 | C20: 250 | D20: 152.5 | E20: =D20/Conversions!$C$7 -> 0.1525 | H20: W | I20: Window | J20: missing
A21: Furnace | B21: 750 | C21: 750 | D21: 750 | E21: =D21/Conversions!$C$7 -> 0.75
A22: Whole house | B22: 240 | C22: 750 | D22: 495 | E22: =D22/Conversions!$C$7 -> 0.495
A23: Hair dryer | B23: 1200 | C23: 1875 | D23: 1537.5 | E23: =D23/Conversions!$C$7 -> 1.5375
A24: Heater (portable) | B24: 750 | C24: 1500 | D24: =AVERAGE(B24:C24) -> 1125 | E24: =D24/Conversions!$C$7 -> 1.125
A25: Microwave oven | B25: 750 | C25: 1100 | D25: =AVERAGE(B25:C25) -> 925 | E25: =D25/Conversions!$C$7 -> 0.925
A26: Personal computer
A27: CPU - awake | B27: 120 | C27: 120 | D27: =AVERAGE(B27:C27) -> 120 | E27: =D27/Conversions!$C$7 -> 0.12
A28: Monitor - awake | B28: 150 | C28: 150 | D28: =AVERAGE(B28:C28) -> 150 | E28: =D28/Conversions!$C$7 -> 0.15
A29: Laptop | B29: 50 | C29: 50 | D29: =AVERAGE(B29:C29) -> 50 | E29: =D29/Conversions!$C$7 -> 0.05 | H29: watts per mode | I29: Laptop | J29: 50 | K29: 50 | L29: =AVERAGE(J29:K29) -> 50 | M29: =L29/Conversions!$C$7 -> 0.05
A30: Radio (stereo) | B30: 70 | C30: 400 | D30: =AVERAGE(B30:C30) -> 235 | E30: =D30/Conversions!$C$7 -> 0.235
A31: Refrigerator (frost-free, 16 cubic feet) | B31: 725 | C31: 725 | D31: =AVERAGE(B31:C31) -> 725 | E31: =D31/Conversions!$C$7 -> 0.725
A32: Televisions (color)
A33: 19" | B33: 65 | C33: 110 | D33: =AVERAGE(B33:C33) -> 87.5 | E33: =D33/Conversions!$C$7 -> 0.0875
A34: 27" | B34: 113 | C34: 113 | D34: 113 | E34: =D34/Conversions!$C$7 -> 0.113 | H34: watts per mode | I34: 36" | J34: 57.6 | K34: 94 | L34: =AVERAGE(J34:K34) -> 75.8 | M34: =L34/Conversions!$C$7 -> 0.0758
A35: 36" | B35: 133 | C35: 133 | D35: 133 | E35: =D35/Conversions!$C$7 -> 0.133
A36: 53"-61" Projection | B36: 170 | C36: 170 | D36: 170 | E36: =D36/Conversions!$C$7 -> 0.17
A37: Flat screen | B37: 120 | C37: 120 | D37: 120 | E37: =D37/Conversions!$C$7 -> 0.12
A38: Toaster | B38: 800 | C38: 1400 | D38: 1100 | E38: =D38/Conversions!$C$7 -> 1.1
A39: Toaster oven | B39: 1225 | C39: 1225 | D39: 1225 | E39: =D39/Conversions!$C$7 -> 1.225
A40: VCR/DVD | B40: 21 | C40: 25 | D40: 23 | E40: =D40/Conversions!$C$7 -> 0.023
A41: Vacuum cleaner | B41: 1000 | C41: 1440 | D41: 1220 | E41: =D41/Conversions!$C$7 -> 1.22
A42: Water heater (40 gallon) | B42: 4500 | C42: 5500 | D42: 5000 | E42: =D42/Conversions!$C$7 -> 5
A43: Water pump (deep well) | B43: 250 | C43: 1100 | D43: 675 | E43: =D43/Conversions!$C$7 -> 0.675
A44: Water bed (with heater, no cover) | B44: 120 | C44: 380 | D44: 250 | E44: =D44/Conversions!$C$7 -> 0.25
A46: Light bulb Incandescent (60 W) | B46: 60 | C46: 60 | D46: 60 | E46: =D46/Conversions!$C$7 -> 0.06 | I46: Light bulb Incandescent (60 W) | J46: 60 | K46: 60 | L46: 60 | M46: =L46/Conversions!$C$7 -> 0.06
A47: Light bulb CFL (60 W eq.) | B47: 13 | C47: 13 | D47: 13 | E47: =D47/Conversions!$C$7 -> 0.013 | H47: Watts | I47: Light bulb CFL (60 W eq.) | L47: 13 | M47: =L47/Conversions!$C$7 -> 0.013
B51: EER (Energy Efficiency Ratio) | C51: but/hour | D51: Typical Wattage | E51: kW | J51: EER (Energy Efficiency Ratio) | K51: but/hour | L51: Typical Wattage | M51: kW
A52: Home Air Conditioner | B52: 8 | C52: 12000 | D52: =C52/B52 -> 1500 | E52: =D52/Conversions!$C$7 -> 1.5 | H52: EER and Btu/hour | I52: Home Air Conditioner | J52: 8 | K52: 5000 | L52: =K52/J52 -> 625 | M52: =L52/Conversions!$C$7 -> 0.625

Sheet Product Conversions
A1: Product Conversions
A4: Example Products | B4: Material Type | C4: shorthand description | D4: Number of Units | E4: Weight (lbs) | F4: Weight (ton) | G4: Unit Explanation/Notes | I4: check (MTCE/ton)
A5: <select product> | B5: <select product> | C5: units | D5: 1 | E5: n/a | F5: 0
A6: Aluminum drink can (12 fl. oz.) | B6: Aluminum Cans | C6: cans | D6: 1 | E6: ='Material Mass Assumptions'!D5 -> 0.0286601 | F6: =E6/Conversions!$C$5 -> 1.433005e-05 | G6: per can | I6: =F6*'Energy Savings'!C8 -> -0.002965598395
A7: Soup steel can (15.5 fl. oz.) | B7: Steel Cans | C7: cans | D7: 1 | E7: ='Material Mass Assumptions'!D6 -> 0.13 | F7: =E7/Conversions!$C$5 -> 6.5e-05 | G7: per tin ferrous can | I7: =F7*'Energy Savings'!$C$9 -> -0.001332084068
A8: Metal coat hanger | B8: Steel Cans | C8: hangers | D8: 1 | E8: ='Material Mass Assumptions'!D7 -> 0.14 | F8: =E8/Conversions!$C$5 -> 7e-05 | G8: per hanger (adult) | I8: =F8*'Energy Savings'!$C$9 -> -0.001434552073
A9: Glass bottle (12 fl. oz.) | B9: Glass | C9: bottles | D9: 1 | E9: ='Material Mass Assumptions'!D8 -> 0.53 | F9: =E9/Conversions!$C$5 -> 0.000265 | G9: per bottle | I9: =F9*'Energy Savings'!$C$11 -> -0.0007029946022
A10: Glass wine bottle (0.75 liter) | B10: Glass | C10: wine bottles | D10: 1 | E10: ='Material Mass Assumptions'!D9 -> 1.08 | F10: =E10/Conversions!$C$5 -> 0.00054 | G10: per bottle | I10: =F10*'Energy Savings'!$C$11 -> -0.001432517303
A11: Gallon plastic milk jug | B11: HDPE | C11: jugs | D11: 1 | E11: ='Material Mass Assumptions'!D10 -> 0.205 | F11: =E11/Conversions!$C$5 -> 0.0001025 | G11: per empty jug | I11: =F11*'Energy Savings'!$C$12 -> -0.005271721366
A12: Gallon plastic detergent container | B12: HDPE | C12: containers | D12: 1 | E12: ='Material Mass Assumptions'!D11 -> 0.33 | F12: =E12/Conversions!$C$5 -> 0.000165 | G12: per empty container | I12: =F12*'Energy Savings'!$C$12 -> -0.008486185614
A13: Plastic grocery bag | B13: HDPE | C13: bags | D13: 1 | E13: ='Material Mass Assumptions'!D12 -> 0.0077 | F13: =E13/Conversions!$C$5 -> 3.85e-06 | G13: per bag | I13: =F13*'Energy Savings'!$C$12 -> -0.0001980109977
A14: Plastic bottle (20 fl. oz.) | B14: PET | C14: bottles | D14: 1 | E14: ='Material Mass Assumptions'!D13 -> 0.0514 | F14: =E14/Conversions!$C$5 -> 2.57e-05 | G14: per bottle | I14: =F14*'Energy Savings'!$C$14 -> -0.001371335203
A15: Plastic bottle (2 liter) | B15: PET | C15: bottles | D15: 1 | E15: ='Material Mass Assumptions'!D14 -> 0.13 | F15: =E15/Conversions!$C$5 -> 6.5e-05 | G15: per bottle | I15: =F15*'Energy Savings'!$C$14 -> -0.003468357517
A16: 2' x 2' x 2.5' cardbox, 3mm | B16: Corrugated Cardboard | C16: boxes | D16: 1 | E16: ='Material Mass Assumptions'!D15 -> 2.2 | F16: =E16/Conversions!$C$5 -> 0.0011 | G16: per box | I16: =F16*'Energy Savings'!$C$15 -> -0.01719702033
A17: Weekly magazine | B17: Magazines/Third-class Mail | C17: magazines | D17: 1 | E17: ='Material Mass Assumptions'!D16 -> 0.3 | F17: =E17/Conversions!$C$5 -> 0.00015 | G17: per 8.5" x 11" magazine (10 magazines per year) | I17: =F17*'Energy Savings'!C16 -> -0.0001630666291
A18: Catalog | B18: Magazines/Third-class Mail | C18: catalogs | D18: 1 | E18: ='Material Mass Assumptions'!D17 -> 1 | F18: =E18/Conversions!$C$5 -> 0.0005 | G18: per catalog of 100 pages ledger | I18: =F18*'Energy Savings'!C17 -> -0.00845124069
A19: Daily newspaper | B19: Newspaper | C19: newspapers | D19: 1 | E19: ='Material Mass Assumptions'!D18 -> 0.4444 | F19: =E19/Conversions!$C$5 -> 0.0002222 | G19: per weekday edition of newspaper | I19: =F19*'Energy Savings'!$C$17 -> -0.003755731363
A20: Sunday New York Times | B20: Newspaper | C20: newspapers | D20: 1 | E20: ='Material Mass Assumptions'!D19 -> 4.2 | F20: =E20/Conversions!$C$5 -> 0.0021 | G20: per Sunday edition of newspaper | I20: =F20*'Energy Savings'!$C$17 -> -0.0354952109
A21: 12-inch stack of newspaper | B21: Newspaper | C21: stacks | D21: 1 | E21: ='Material Mass Assumptions'!D20 -> 35 | F21: =E21/Conversions!$C$5 -> 0.0175 | G21: per 12" stack | I21: =F21*'Energy Savings'!$C$17 -> -0.2957934241
A22: Printer paper, 1 ream (500 sheets) | B22: Office Paper | C22: reams | D22: 1 | E22: ='Material Mass Assumptions'!D21 -> 5 | F22: =E22/Conversions!$C$5 -> 0.0025 | G22: per 500 sheets of letter 8 1/2" x 11", | I22: =F22*'Energy Savings'!$C$18 -> -0.02520406608
A23: Sheet of printer paper | B23: Office Paper | C23: sheets | D23: 1 | E23: ='Material Mass Assumptions'!D22 -> 0.01 | F23: =E23/Conversions!$C$5 -> 5e-06 | G23: per 1 sheet of letter 8 1/2" x 11", | I23: =F23*'Energy Savings'!$C$18 -> -5.040813215e-05
A24: White business envelope | B24: Office Paper | C24: envelopes | D24: 1 | E24: ='Material Mass Assumptions'!D23 -> 0.011 | F24: =E24/Conversions!$C$5 -> 5.5e-06 | G24: per No. 10 envelope (4 1/8" x 9 1/2") 24 bond paper | I24: =F24*'Energy Savings'!$C$18 -> -5.544894537e-05
A25: Paperboard Cereal box | B25: Broad Definition | C25: cereal boxes | D25: 1 | E25: ='Material Mass Assumptions'!D24 -> 0.15 | F25: =E25/Conversions!$C$5 -> 7.5e-05 | G25: per average Chipboard, cereal box

Sheet Energy Savings
C4: Energy Consumed/Avoided Compared to Landfilling
C5: (Million Btu/ton)
A6: Category | B6: Material
B7: <select product> | C7: 2009 | D7: 2015
A8: Inorganics | B8: Aluminum Cans | C8: -206.9496195 | D8: -153.2918317
B9: Steel Cans | C9: -20.49360105 | D9: -20.49360105
B10: Copper Wire | C10: -83.11704421 | D10: -83.11704421
B11: Glass | C11: -2.65280982 | D11: -2.65280982
A12: Plastics | B12: HDPE | C12: -51.43142796 | D12: -50.88415116
B13: LDPE | C13: -56.53773483
B14: PET | C14: -53.35934641 | D14: -32.5820882
A15: Paper and Wood | B15: Corrugated Cardboard | C15: -15.63365484 | D15: -15.58139331
B16: Magazines/Third-class mail | C16: -1.08711086 | D16: -0.9002459092
B17: Newspaper | C17: -16.90248138 | D17: -16.71873261
B18: Office Paper | C18: -10.08162643 | D18: -10.47672323
B19: Phonebooks | C19: -11.83588509 | D19: -11.97488695
B20: Textbooks | C20: -0.53034485 | D20: -1.422881297
B21: Dimensional Lumber | C21: 0.2217184422 | D21: 0.5440611031
B22: Medium Density Fiberboard | C22: 0.4920914022 | D22: 0.3379416414
A23: Other Organics | B23: Food Scraps | C23: 0.258307192
B24: Yard Trimmings | C24: 0.1652501131
B25: Grass | C25: 0.15495582
B26: Leaves | C26: 0.133575486
B27: Branches | C27: 0.2177772422
A28: Mixed Materials | B28: Mixed Paper
B29: Broad Definition | C29: -23.17743814 | D29: -20.59616264
B30: Residential Definition | C30: -23.19204128 | D30: -20.60471296
B31: Office Paper Definition | C31: -14.19433952 | D31: -21.0447902
B32: Mixed Metals | C32: -74.84176787 | D32: -67.17020687
B33: Mixed Plastics | C33: -53.20512753 | D33: -39.77669226
B34: Mixed Recyclables | C34: -16.99432698 | D34: -15.16036865
B35: Mixed Organics | C35: 0.2101909735
B36: Mixed MSW | C36: -0.2642192423
B37: Carpet | C37: -106.1085304 | D37: -22.09830365
B38: Personal Computers | C38: -43.96229049 | D38: -29.77033134
B39: Clay Bricks | C39: NA
B40: Aggregate | C40: -0.6342221157
B41: Fly Ash | C41: -5.294076313 | D41: -5.294076313
B42: Tires | C42: -52.49071116 | D42: -4.198452398

Sheet Calculations
B1: Calculations
F2: Energy Savings
B3: Product Type | C3: Material Type | D3: Units | E3: Total Weight (short tons) | F3: Million Btu | G3: Thousand Btu
B5: Aluminum drink can (12 fl. oz.) | C5: Aluminum Cans | D5: =iWARM!F7 -> 0 | E5: =D5*'Product Conversions'!F6 -> 0 | F5: =-E5*(VLOOKUP(C5,'Energy Savings'!$B$7:$C$42,2,FALSE)) -> 0 | G5: =F5*1000 -> 0
B6: Soup steel can (15.5 fl. oz.) | C6: Steel Cans | D6: =iWARM!F8 -> 0 | E6: =D6*'Product Conversions'!F7 -> 0 | F6: =-E6*(VLOOKUP(C6,'Energy Savings'!$B$7:$C$42,2,FALSE)) -> 0 | G6: =F6*1000 -> 0
B7: Metal coat hanger | C7: Steel Cans | D7: =iWARM!F9 -> 0 | E7: =D7*'Product Conversions'!F8 -> 0 | F7: =-E7*(VLOOKUP(C7,'Energy Savings'!$B$7:$C$42,2,FALSE)) -> 0 | G7: 0
B8: Glass bottle (12 fl. oz.) | C8: Glass | D8: =iWARM!F10 -> 0 | E8: =D8*'Product Conversions'!F9 -> 0 | F8: =-E8*(VLOOKUP(C8,'Energy Savings'!$B$7:$C$42,2,FALSE)) -> 0 | G8: 0
B9: Glass wine bottle (0.75 liter) | C9: Glass | D9: =iWARM!F11 -> 0 | E9: =D9*'Product Conversions'!F10 -> 0 | F9: =-E9*(VLOOKUP(C9,'Energy Savings'!$B$7:$C$42,2,FALSE)) -> 0 | G9: 0
B10: Gallon plastic milk jug | C10: HDPE | D10: =iWARM!F12 -> 0 | E10: =D10*'Product Conversions'!F11 -> 0 | F10: =-E10*(VLOOKUP(C10,'Energy Savings'!$B$7:$C$42,2,FALSE)) -> 0 | G10: 0
B11: Gallon plastic detergent container | C11: HDPE | D11: =iWARM!F13 -> 0 | E11: =D11*'Product Conversions'!F12 -> 0 | F11: =-E11*(VLOOKUP(C11,'Energy Savings'!$B$7:$C$42,2,FALSE)) -> 0 | G11: 0
B12: Plastic grocery bag | C12: HDPE | D12: =iWARM!F14 -> 0 | E12: =D12*'Product Conversions'!F13 -> 0 | F12: =-E12*(VLOOKUP(C12,'Energy Savings'!$B$7:$C$42,2,FALSE)) -> 0 | G12: 0
B13: Plastic bottle (20 fl. oz.) | C13: PET | D13: =iWARM!F15 -> 0 | E13: =D13*'Product Conversions'!F14 -> 0 | F13: =-E13*(VLOOKUP(C13,'Energy Savings'!$B$7:$C$42,2,FALSE)) -> 0 | G13: 0
B14: Plastic bottle (2 liter) | C14: PET | D14: =iWARM!F16 -> 0 | E14: =D14*'Product Conversions'!F15 -> 0 | F14: =-E14*(VLOOKUP(C14,'Energy Savings'!$B$7:$C$42,2,FALSE)) -> 0 | G14: 0
B15: 2' x 2' x 2.5' cardbox, 3mm | C15: Corrugated Cardboard | D15: =iWARM!F17 -> 0 | E15: =D15*'Product Conversions'!F16 -> 0 | F15: =-E15*(VLOOKUP(C15,'Energy Savings'!$B$7:$C$42,2,FALSE)) -> 0 | G15: 0
B16: Weekly magazine | C16: Magazines/Third-class Mail | D16: =iWARM!F18 -> 0 | E16: =D16*'Product Conversions'!F17 -> 0 | F16: =-E16*(VLOOKUP(C16,'Energy Savings'!$B$7:$C$42,2,FALSE)) -> 0 | G16: 0
B17: Catalog | C17: Magazines/Third-class Mail | D17: =iWARM!F19 -> 0 | E17: =D17*'Product Conversions'!F18 -> 0 | F17: =-E17*(VLOOKUP(C17,'Energy Savings'!$B$7:$C$42,2,FALSE)) -> 0 | G17: 0
B18: Daily newspaper | C18: Newspaper | D18: =iWARM!F20 -> 0 | E18: =D18*'Product Conversions'!F19 -> 0 | F18: =-E18*(VLOOKUP(C18,'Energy Savings'!$B$7:$C$42,2,FALSE)) -> 0 | G18: 0
B19: Sunday New York Times | C19: Newspaper | D19: =iWARM!F21 -> 0 | E19: =D19*'Product Conversions'!F20 -> 0 | F19: =-E19*(VLOOKUP(C19,'Energy Savings'!$B$7:$C$42,2,FALSE)) -> 0 | G19: 0
B20: 12-inch stack of newspaper | C20: Newspaper | D20: =iWARM!F22 -> 0 | E20: =D20*'Product Conversions'!F21 -> 0 | F20: =-E20*(VLOOKUP(C20,'Energy Savings'!$B$7:$C$42,2,FALSE)) -> 0 | G20: 0
B21: Printer paper, 1 ream (500 sheets) | C21: Office Paper | D21: =iWARM!F23 -> 0 | E21: =D21*'Product Conversions'!F22 -> 0 | F21: =-E21*(VLOOKUP(C21,'Energy Savings'!$B$7:$C$42,2,FALSE)) -> 0 | G21: 0
B22: Sheet of paper | C22: Office Paper | D22: =iWARM!F24 -> 0 | E22: =D22*'Product Conversions'!F23 -> 0 | F22: =-E22*(VLOOKUP(C22,'Energy Savings'!$B$7:$C$42,2,FALSE)) -> 0 | G22: 0
B23: White business envelope | C23: Office Paper | D23: =iWARM!F25 -> 0 | E23: =D23*'Product Conversions'!F24 -> 0 | F23: =-E23*(VLOOKUP(C23,'Energy Savings'!$B$7:$C$42,2,FALSE)) -> 0 | G23: 0
B24: Paperboard Cereal box | C24: Broad Definition | D24: =iWARM!F26 -> 0 | E24: =D24*'Product Conversions'!F25 -> 0 | F24: =-E24*(VLOOKUP(C24,'Energy Savings'!$B$7:$C$42,2,FALSE)) -> 0 | G24: =F24*1000 -> 0

Sheet Conversions
B1: Unit Conversions
B3: Conversions
B5: lbs/ton | C5: 2000
B6: metric ton/short ton | C6: 0.90718474
B7: thousand Btu/MMBtu or W/kW | C7: =10^3 -> 1000
B8: but to Moto | C8: =1/1000000 -> 1e-06
B9: joule/MJ or Btu/MMBtu | C9: =10^6 -> 1000000
B10: but/joule | C10: =1/1055.05585 -> 0.0009478171227
B11: thousand btu/btu | C11: =1/1000 -> 0.001
B12: million bum | C12: =C13/C7 -> 0.0009478171227
B13: thousand bum | C13: =C9*C10*C11 -> 0.9478171227
B14: bum | C14: =C7*C13 -> 947.8171227
B15: Btu/kWh | C15: 3412
B16: MMBtu/kWh | C16: =C15/C9 -> 0.003412
B17: kwh/MJ | C17: =C15/C14 -> 3.59985056
B18: (No Suggestions) | C18: =1/C15 -> 0.0002930832356
B19: Btu/kWh output (US national average) | C19: 9578
B20: MMBtu/kWh output (US national average) | C20: =C19/C9 -> 0.009578
B21: upstream electricity efficiency (US national grid) | C21: =C15/C19 -> 0.356233034
B22: delivered electricity equivalent (MMBtu/kWh) | C22: =(C16/C21)/(1-C24) -> 0.0102359248
B23: delivered electricity equivalent (thousand Btu/kWh) | C23: =C22*1000 -> 10.2359248
B24: transmission and distribution losses | C24: =0.95/14.78 -> 0.06427604871
B30: Tracing raw energy savings into delivered electricity equivalent
